Cogmind - Beta 13 @@@ ROGUE MODE // 2024.07.07 @ 19:00:43 Player: ThatBishHoly Result: Destroyed by Y-54 Guardian with Gatling Laser Performance ------------- Evolutions (3) 1500 Regions Visited (7) 1400 Robots Destroyed (65) 325 Value Destroyed (2121) 2121 Prototype IDs (3) 60 Alien Tech Used (0) 0 Bonus (661) 661 TOTAL SCORE: 6067 Bonus ------- High Alert Combat Kills 43 Follower Combat Kills 345 Aligned with FarCom 300 Friendly Fire -27 Cogmind --------- Core Integrity 0/700 Matter 77/300 Energy 98/100 System Corruption 2% Temperature Cool (6) Movement Core (150) Ox2 Location -7/Factory Parts ------- > --- POWER (1) -------- (None) > --- PROPULSION (5) --- (None) > --- UTILITY (3) ------ Signal Interpreter > --- WEAPON (4) ------- Heavy Ion Cannon > --- INVENTORY (5) ---- AWS/Gauss Peak State ------------ > --- POWER ------------ Nuclear Core > --- PROPULSION ------- Titanium Leg Titanium Leg Titanium Leg Improved Carbon-fiber Leg > --- UTILITY ---------- Improved Sensor Array Signal Interpreter Medium Reactive Plating > --- WEAPON ----------- AWS/Autocannon Longsword +1 > --- INVENTORY -------- Weapon Cycler EM Pulse Cannon AWS/Gauss [Rating: 64] Favorites ----------- Power Nuclear Core Engine Ion Engine Power Core Nuclear Core Propulsion Aluminum Leg Leg Aluminum Leg Utility Signal Interpreter Device Weapon Cycler Processor Signal Interpreter Protection Medium Reactive Plating Weapon Longsword +1 Energy Gun Medium Laser Energy Cannon EM Pulse Cannon Ballistic Gun AWS/Gauss Ballistic Cannon AWS/Autocannon Launcher Grenade Launcher Slashing Weapon Longsword +1 Build | -11 -10 -10 -10 -9 -8 -8 -7 ------- Run | Yrd Mat Min Exi Min Mat Sto Fac Slots Evolved 6 | . . . . . 4 . 2 Power . | . . . . . . . . Propulsion 3 | . . . . . 2 . 1 Utility 1 | . . . . . . . 1 Weapon 2 | . . . . . 2 . . Parts Attached 41 | 5 1 . 2 6 8 5 14 Power 10 | 1 . . . 2 4 . 3 Engine 6 | 1 . . . 1 2 . 2 Core 4 | . . . . 1 2 . 1 Reactor . | . . . . . . . . Propulsion 11 | 2 . . . 1 2 4 2 Treads . | . . . . . . . . Leg 11 | 2 . . . 1 2 4 2 Wheel . | . . . . . . . . Hover . | . . . . . . . . Flight . | . . . . . . . . Utility 5 | . 1 . . 1 . 1 2 Device 3 | . . . . 1 . 1 1 Storage . | . . . . . . . . Processor 1 | . 1 . . . . . . Hackware . | . . . . . . . . Protection 1 | . . . . . . . 1 Artifact . | . . . . . . . . Weapon 15 | 2 . . 2 2 2 . 7 Energy Gun 2 | 2 . . . . . . . Energy Cannon 3 | . . . . . . . 3 Ballistic Gun 3 | . . . . 1 . . 2 Ballistic Cannon 2 | . . . . . 1 . 1 Launcher 2 | . . . 1 . . . 1 Special Weapon . | . . . . . . . . Impact Weapon . | . . . . . . . . Slashing Weapon 3 | . . . 1 1 1 . . Piercing Weapon . | . . . . . . . . Special Melee Weapon . | . . . . . . . . Unidentified Prototypes 3 | . . . 1 1 1 . . Parts Lost 20 | . . . . 1 1 . 18 Power 5 | . . . . 1 1 . 3 Propulsion 6 | . . . . . . . 6 Utility 3 | . . . . . . . 3 Weapon 6 | . . . . . . . 6 Highest Loss Streak 6 | . . . . 1 1 . 6 To Critical Strikes . | . . . . . . . . Average Slot Usage (%) 71 | . 76 85 85 84 61 81 62 Engine 4 | . 14 14 14 1 4 . . Core 4 | . . . . 12 2 9 1 Leg 24 | . 28 28 28 28 20 36 18 Device 7 | . . . . 6 9 9 11 Processor 9 | . 5 14 14 14 9 9 7 Energy Gun 3 | . 28 28 15 . . . . Ballistic Gun 1 | . . . . 7 . . 4 Ballistic Cannon 5 | . . . . . 8 9 4 Launcher 1 | . . . 6 6 . . 2 Slashing Weapon 6 | . . . 6 6 7 9 6 Naked Turns . | . . . . . . . . Heaviest Build 91 | 9 9 9 11 21 73 71 91 Greatest Support 69 | 20 20 20 20 28 48 69 69 Greatest Overweight (x) 8 | . . . . . 2 1 8 Average Overweight (x) . | . . . . . 1 1 . Largest Inventory Capacity 5 | 5 5 5 5 5 5 5 5 Average Capacity 5 | 5 5 5 5 5 5 5 5 Most Carried 5 | 5 5 5 5 5 5 5 5 Average Carried 4 | . 3 5 4 4 4 4 3 Final Capacity 5 | 5 5 5 5 5 5 5 5 Final Carried 5 | . 5 5 5 5 5 5 2 Class Distribution -------------------- 44% | Skirmisher 43% | Mutant 11% | Assassin Dominant Class ---------------- Mutant | -10/Materials Mutant | -10/Mines Mutant | -10/Exiles Mutant | -9/Mines Skirmisher | -8/Materials Assassin | -8/Storage Mutant | -7/Factory Resources | -11 -10 -10 -10 -9 -8 -8 -7 ----------- Run | Yrd Mat Min Exi Min Mat Sto Fac Matter Collected 527 | 245 12 . . 113 80 50 27 Remotely . | . . . . . . . . Salvage Created 1518 | . 12 . . 101 718 237 450 Parts 98 | . 2 . . 3 46 18 29 Haulers Intercepted . | . . . . . . . . Recyclers Shooed . | . . . . . . . . Parts Field Recycled . | . . . . . . . . Retrieved Matter . | . . . . . . . . Parts Self-Destructed . | . . . . . . . . Prevented . | . . . . . . . . Kills | -11 -10 -10 -10 -9 -8 -8 -7 ------- Run | Yrd Mat Min Exi Min Mat Sto Fac Combat Hostiles Destroyed 47 | . . . . 2 22 6 17 Guns 8 | . . . . 2 . . 6 Cannons 30 | . . . . . 22 6 2 AOE 9 | . . . . . . . 9 Classes Destroyed 12 | . 1 . . 2 7 . 2 Worker 2 | . . . . . 2 . . Builder 4 | . . . . . 1 1 2 Tunneler 2 | . . . . . 2 . . Operator 2 | . . . . . 1 1 . Watcher 8 | . 1 . . . 5 1 1 Swarmer 18 | . . . . . 6 . 12 Grunt 18 | . . . . 1 13 2 2 Brawler 1 | . . . . 1 . . . Duelist 1 | . . . . . 1 . . Sentry 6 | . . . . . 2 4 . Specialist 2 | . . . . . . . 2 Hunter 1 | . . . . . . . 1 Best Kill Streak 7 | . 1 . . 2 7 3 6 Combat Bots Only 6 | . . . . 2 6 2 6 Max Kills in Single Turn 4 | . 1 . . 1 2 1 4 Gunslinging . | . . . . . . . . Exploded 4 | . . . . . . . 4 Melee . | . . . . . . . . Uniques/NPCs Destroyed . | . . . . . . . . Combat | -11 -10 -10 -10 -9 -8 -8 -7 -------- Run | Yrd Mat Min Exi Min Mat Sto Fac Hostile Shots Fired 473 | . . . . 4 49 57 363 Missed 186 | . . . . 1 14 16 155 Damage Taken 4137 | . . . . 124 658 599 2756 Core 981 | . . . . 38 236 . 707 Absorbed by Shields . | . . . . . . . . Core Remaining (%) 80 | 100 . . . 84 . 57 . Volleys Fired 16 | . 2 . . 3 . . 11 Largest 3 | . 2 . . 1 . . 3 Hottest 139 | . 100 . . 30 . . 139 Shots Fired 183 | . 4 . . 15 72 32 60 Gun 55 | . 4 . . 12 . . 39 Cannon 118 | . . . . . 72 32 14 Launcher 10 | . . . . 3 . . 7 Special . | . . . . . . . . Kinetic 165 | . . . . 12 72 32 49 Thermal 5 | . 4 . . . . . 1 Explosive 10 | . . . . 3 . . 7 Electromagnetic 3 | . . . . . . . 3 Robot Hit Streak 12 | . 2 . . 2 8 12 6 Robot Miss Streak 6 | . 1 . . 3 4 4 6 Penetration Max . | . . . . . . . . Secondary Targets . | . . . . . . . . Autonomous 147 | . . . . 12 72 33 30 Shots Hit Robots 135 | . 3 . . 6 55 24 47 Core Hits 67 | . 1 . . 3 21 7 35 Critical Kills . | . . . . . . . . Critical Parts Destroyed . | . . . . . . . . Critical Strikes 7 | . . . . . 3 1 3 Blast 6 | . . . . . 3 1 2 Sever 1 | . . . . . . . 1 Melee Attacks 14 | . . . . . 5 1 8 Impact . | . . . . . . . . Slashing 14 | . . . . . 5 1 8 Piercing . | . . . . . . . . Sneak Attacks 6 | . . . . . 5 1 . Combat Hostiles . | . . . . . . . . Follow-up Attacks . | . . . . . . . . Damage Inflicted 8569 | . 38 . . 233 4491 1744 2063 Guns 981 | . 38 . . 206 . . 737 Cannons 5961 | . . . . . 4047 1633 281 Explosions 777 | . . . . 27 . . 750 Melee 845 | . . . . . 444 111 290 Ramming 5 | . . . . . . . 5 Kinetic 6812 | . . . . 206 4047 1633 926 Thermal 66 | . 38 . . . . . 28 Explosive 777 | . . . . 27 . . 750 Electromagnetic 64 | . . . . . . . 64 Impact . | . . . . . . . . Slashing 845 | . . . . . 444 111 290 Piercing . | . . . . . . . . Highest Corruption 2 | . . . . . . . 2 Average Corruption 2 | . . . . . . . 2 Corruption Purged . | . . . . . . . . Corruption Blocked . | . . . . . . . . Overload Shots . | . . . . . . . . Overflow Damage 1185 | . . . . . 866 191 128 Projectiles 920 | . . . . . 800 120 . Explosions 90 | . . . . . . . 90 Melee 175 | . . . . . 66 71 38 Knockbacks 17 | . . . . . 13 4 . Impact . | . . . . . . . . Kinetic 16 | . . . . . 12 4 . Secondary 1 | . . . . . 1 . . Self-Inflicted Damage 428 | . . . . 81 . . 347 Shots 7 | . . . . 3 . . 4 Rammed 4 | . . . . . . . 4 Targets Rammed 4 | . . . . . . . 4 Kicked . | . . . . . . . . Crushed . | . . . . . . . . Highest Temperature 88 | . 39 . . . 6 1 88 Average Temperature 27 | . 20 . . . 4 1 30 Received Heat Transfer 1362 | . . . . 18 234 234 876 Siege Activations . | . . . . . . . . Robots Corrupted . | . . . . . . . . Combat Hostiles . | . . . . . . . . Parts Fried . | . . . . . . . . Impact Corruptions . | . . . . . . . . Robots Melted . | . . . . . . . . Combat Hostiles . | . . . . . . . . Parts Melted . | . . . . . . . . Heat Transferred 148 | . 111 . . . . . 37 Parts Sabotaged . | . . . . . . . . Parts Stolen . | . . . . . . . . Parts Stripped . | . . . . . . . . Power Chain Reactions . | . . . . . . . . Alert | -11 -10 -10 -10 -9 -8 -8 -7 ------- Run | Yrd Mat Min Exi Min Mat Sto Fac Peak Influence 596 | . 36 13 . 60 304 554 596 Initial 181 | . . 13 . . 20 128 181 Average 171 | . 19 13 . 27 138 309 316 Maximum Alert Level 2 | . . . . . 1 2 2 Low Security (%) 57 | 100 100 100 . 100 64 12 22 Level 1 33 | . . . . . 35 73 40 Level 2 9 | . . . . . . 13 36 Level 3 . | . . . . . . . . Level 4 . | . . . . . . . . Level 5 . | . . . . . . . . High Security . | . . . . . . . . Max Security . | . . . . . . . . Squads Dispatched 14 | . . . . . 3 4 7 Investigation 3 | . . . . . 2 1 . Extermination 1 | . . . . . . . 1 Reinforcement 7 | . . . . . 1 1 5 Assault 1 | . . . . . . . 1 Garrison 2 | . . . . . . 2 . Intercept . | . . . . . . . . Searches Triggered . | . . . . . . . . Construction Impeded 1 | . . . . . . . 1 Haulers Reinforced . | . . . . . . . . Active Scanning Responses . | . . . . . . . . Cargo Convoy Interrupts . | . . . . . . . . Stealth | -11 -10 -10 -10 -9 -8 -8 -7 --------- Run | Yrd Mat Min Exi Min Mat Sto Fac Distress Signals 2 | . . . . . . 1 1 Communications Jammed . | . . . . . . . . Distress Signals . | . . . . . . . . Times Spotted 85 | . 2 . . 5 32 18 28 Peak Tracking Total 6 | . 1 . . 3 3 6 6 Tactical Retreats 11 | . . . . . 4 1 6 Traps | -11 -10 -10 -10 -9 -8 -8 -7 ------- Run | Yrd Mat Min Exi Min Mat Sto Fac Traps Triggered 5 | . . . . 1 2 1 1 Indirectly . | . . . . . . . . Trap Hack Attempts . | . . . . . . . . Triggered . | . . . . . . . . Disarmed 6 | . 6 . . . . . . Reprogrammed . | . . . . . . . . Reused . | . . . . . . . . Traps Extracted . | . . . . . . . . Installed . | . . . . . . . . Triggered . | . . . . . . . . Machines | -11 -10 -10 -10 -9 -8 -8 -7 ---------- Run | Yrd Mat Min Exi Min Mat Sto Fac Machines Disabled 12 | . . . . . 3 4 5 Max in Single Turn 2 | . . . . . 1 1 2 Machines Repaired . | . . . . . . . . Machines Dismantled . | . . . . . . . . Machines Sabotaged . | . . . . . . . . Overloaded Fab Kills . | . . . . . . . . Hacking | -11 -10 -10 -10 -9 -8 -8 -7 --------- Run | Yrd Mat Min Exi Min Mat Sto Fac Machines Accessed 9 | . 2 . . 1 3 3 . Terminals 7 | . 2 . . . 2 3 . Fabricators . | . . . . . . . . Repair Stations . | . . . . . . . . Recycling Units . | . . . . . . . . Scanalyzers 1 | . . . . . 1 . . Garrison Access . | . . . . . . . . Total Hacks 17 | . 4 . . 1 6 6 . Successful 9 | . 3 . . 1 3 2 . Failed 8 | . 1 . . . 3 4 . Catastrophic 2 | . 1 . . . . 1 . Database Lockouts . | . . . . . . . . Manual 2 | . . . 1 . 1 . . Terminals 14 | . 4 . . . 4 6 . Fabricators . | . . . . . . . . Repair Stations . | . . . . . . . . Recycling Units . | . . . . . . . . Scanalyzers 2 | . . . . . 2 . . Garrison Access . | . . . . . . . . Terminal Hacks 7 | . 3 . . 1 1 2 . Open Door 3 | . . . . 1 . 2 . Locate Traps 1 | . 1 . . . . . . Disarm Traps 1 | . 1 . . . . . . Zone Layout 2 | . 1 . . . 1 . . Fabricator Hacks . | . . . . . . . . Repair Station Hacks . | . . . . . . . . Recycling Unit Hacks . | . . . . . . . . Scanalyzer 2 | . . . . . 2 . . Insert Component 2 | . . . . . 2 . . Garrison Access Hacks . | . . . . . . . . Unauthorized Hacks . | . . . . . . . . Terminals . | . . . . . . . . Fabricators . | . . . . . . . . Repair Stations . | . . . . . . . . Recycling Units . | . . . . . . . . Scanalyzers . | . . . . . . . . Garrison Access . | . . . . . . . . Data Cores Recovered . | . . . . . . . . Used . | . . . . . . . . Hacking Detections 6 | . 2 . . . 3 1 . Full Trace Events 2 | . . . . . 1 1 . Feedback Events . | . . . . . . . . Feedback Blocked . | . . . . . . . . Robot Schematics Acquired . | . . . . . . . . Robots Built . | . . . . . . . . Authchips . | . . . . . . . . Time . | . . . . . . . . Total Robot Build Rating . | . . . . . . . . Part Schematics Acquired . | . . . . . . . . Parts Built . | . . . . . . . . Authchips . | . . . . . . . . Time . | . . . . . . . . Total Part Build Rating . | . . . . . . . . Parts Repaired . | . . . . . . . . Time . | . . . . . . . . Parts Recycled . | . . . . . . . . Recycled Matter . | . . . . . . . . Retrieved Matter . | . . . . . . . . Retrieved Components . | . . . . . . . . Parts Scanalyzed . | . . . . . . . . Part Schematics Acquired . | . . . . . . . . Parts Damaged . | . . . . . . . . Bothacking | -11 -10 -10 -10 -9 -8 -8 -7 ------------ Run | Yrd Mat Min Exi Min Mat Sto Fac Used RIF Installer . | . . . . . . . . Robots Hacked . | . . . . . . . . Non-combat . | . . . . . . . . Combat . | . . . . . . . . Robot Hacks Applied . | . . . . . . . . Relay Couplers Released . | . . . . . . . . Fabnet Peak Effective % . | . . . . . . . . Robots Rewired . | . . . . . . . . Allies Hacked . | . . . . . . . . Hacks Repelled . | . . . . . . . . Allies | -11 -10 -10 -10 -9 -8 -8 -7 -------- Run | Yrd Mat Min Exi Min Mat Sto Fac Total Allies 6 | . . 3 . . . 3 . Largest Group 3 | . . 3 3 3 . 3 . Highest-Rated Group 93 | . . 40 40 40 . 93 . Highest-Rated Ally 31 | . . 16 16 16 . 31 . Total Orders . | . . . . . . . . Ally Attacks 67 | . . . . 20 . 47 . Total Damage 850 | . . . . 214 . 636 . Kills 13 | . . . . 3 . 10 . Allies Corrupted . | . . . . . . . . Allies Melted . | . . . . . . . . Intel | -11 -10 -10 -10 -9 -8 -8 -7 ------- Run | Yrd Mat Min Exi Min Mat Sto Fac Robot Analysis Total . | . . . . . . . . Derelict Logs Recovered 1 | . . . . 1 . . . Drone Launches . | . . . . . . . . Drone Recoveries . | . . . . . . . . Exploration | -11 -10 -10 -10 -9 -8 -8 -7 ------------- Run | Yrd Mat Min Exi Min Mat Sto Fac Turns Passed 5113 | 63 261 141 406 757 1798 800 887 Spaces Moved 2889 | 53 204 118 328 488 697 413 588 Core 97 | 16 . . . . . . 81 Treads . | . . . . . . . . Legs 2792 | 37 204 118 328 488 697 413 507 Wheels . | . . . . . . . . Hover . | . . . . . . . . Flight . | . . . . . . . . Fastest Speed 50 | 50 120 120 120 120 120 190 50 Average Speed 162 | 98 120 120 120 120 243 191 134 Slowest Speed 450 | 120 120 120 120 120 260 197 450 Overloaded Moves . | . . . . . . . . Propulsion Burnouts . | . . . . . . . . Robots Hopped . | . . . . . . . . Cave-ins Triggered . | . . . . . . . . Exploration Rate (%) 39 | 4 23 24 63 72 47 69 17 Regions Visited 7 Branch Regions 4 Pre-discovered Areas . | . . . . . . . . Known Exits Taken 6 | . 1 1 1 1 1 1 . Unknown Exits Taken 1 | 1 . . . . . . . Scrap Searched 1 | . . . . 1 . . . Spaces Dug . | . . . . . . . . Terrain Destroyed 129 | . . . . 15 20 7 87 Melee . | . . . . . . . . Projectile 46 | . . . . 12 20 7 7 AOE 83 | . . . . 3 . . 80 Terrain Rammed . | . . . . . . . . Walls Destroyed . | . . . . . . . . Machines Disabled . | . . . . . . . . Actions | -11 -10 -10 -10 -9 -8 -8 -7 --------- Run | Yrd Mat Min Exi Min Mat Sto Fac Total 3259 | 64 215 117 342 656 790 424 651 Wait 247 | . 4 . 4 152 72 . 15 Move 2882 | 52 203 117 327 487 696 412 588 Hop . | . . . . . . . . Pick Up 32 | 6 5 . 3 3 5 1 9 Fast Attach 8 | . 1 . . 4 3 . . Attach 22 | 5 . . . 1 3 . 13 Detach 1 | . . . . . . . 1 Swap 11 | . . . 2 1 2 5 1 Drop 22 | 1 . . 6 5 4 5 1 Fire 16 | . 2 . . 3 . . 11 Melee 14 | . . . . . 5 1 8 Ram 4 | . . . . . . . 4 Kick . | . . . . . . . . Crush . | . . . . . . . . Escape Stasis . | . . . . . . . . Rewire . | . . . . . . . . Trap . | . . . . . . . . Miscellaneous . | . . . . . . . . Route ------- -11/Scrapyard -10/Materials -10/Mines -10/Exiles -9/Mines (discovered 2 exits: *Mat x2) -8/Materials -8/Storage -7/Factory History --------- Turn | Location | Event 9 | -11/Scrapyard | Discovered new exit (range 15) 64 | -11/Scrapyard | Entered Materials 293 | -10/Materials | Discovered new exit (range 16) 302 | -10/Materials | Build established: Mutant 310 | -10/Materials | Identified exit to Mines 325 | -10/Materials | Entered Mines 361 | -10/Mines | Assisted by bots powering up and referring to "LRC-V3" 459 | -10/Mines | Deemed a non-threat by the Exiles lab entrance 460 | -10/Mines | Discovered new exit (range 5) 465 | -10/Mines | Identified exit to Exiles 466 | -10/Mines | Entered Exiles 466 | -10/Exiles | Accompanied by 3 allies 508 | -10/Exiles | Met 8R-AWN 534 | -10/Exiles | Met EX-HEX 584 | -10/Exiles | Met EX-BIN 613 | -10/Exiles | Aligned with FarCom system 614 | -10/Exiles | Given EX-Vault access code 672 | -10/Exiles | Opened EX-Vault 681 | -10/Exiles | Found Prototype Ballistic Cannon 689 | -10/Exiles | Found Prototype Slashing Weapon 690 | -10/Exiles | Identified Longsword +1 697 | -10/Exiles | Found Prototype Ballistic Gun 725 | -10/Exiles | Warned to stay clear of 0b10 Research branches 730 | -10/Exiles | Exiles lab attacked by MAIN.C 844 | -10/Exiles | Discovered new exit (range 15) 867 | -10/Exiles | Identified exit to Mines 872 | -10/Exiles | Stole three prototypes: Longsword +1, AWS/Autocannon, AWS/Gauss 872 | -10/Exiles | Entered Mines 872 | -9/Mines | Accompanied by 3 allies 1017 | -9/Mines | Excavation squad dispatched 1017 | -9/Mines | A large section of the Mines collapsed 1056 | -9/Mines | Lost 3 allies 1212 | -9/Mines | Discovered new exit (range 16) 1240 | -9/Mines | Met a Derelict who couldn't figure out how to use a Trap Extractor 1241 | -9/Mines | Identified AWS/Gauss 1276 | -9/Mines | Identified exit to Materials 1575 | -9/Mines | Learned Materials interactive machine intel 1584 | -9/Mines | Discovered exit to Materials (range 6) 1629 | -9/Mines | Entered Materials 1629 | -8/Materials | Evolved 4 slots: Propulsion x2, Weapon x2 1630 | -8/Materials | Loaded intel: 19 interactive machine locations 1631 | -8/Materials | Identified AWS/Autocannon 1915 | -8/Materials | Build established: Skirmisher 3396 | -8/Materials | Discovered new exit (range 11) 3423 | -8/Materials | Identified exit to Storage 3427 | -8/Materials | Entered Storage 3669 | -8/Storage | Allied Derelicts emerged from ambush trap array 3925 | -8/Storage | Build established: Assassin 4120 | -8/Storage | Garrison activated, responded to threat 4175 | -8/Storage | Lost 3 allies 4213 | -8/Storage | Discovered new exit (range 8) 4225 | -8/Storage | Identified exit to Factory 4227 | -8/Storage | Entered Factory 4227 | -7/Factory | Evolved 2 slots: Propulsion x1, Utility x1 4229 | -7/Factory | FarCom data flow suspended 4521 | -7/Factory | Build established: Mutant 5010 | -7/Factory | Core integrity fell below 50% 5017 | -7/Factory | Lost 4 parts (1p1n1u1w) 5027 | -7/Factory | First assault squad dispatched 5055 | -7/Factory | Core integrity fell below 20% 5084 | -7/Factory | Lost 6 parts (1p1n4w) 5114 | -7/Factory | Destroyed by Y-54 Guardian with Gatling Laser Last Messages --------------- 05024_ Carbon-fiber Leg destroyed. 05025_ Flak Gun destroyed. 05027_ ALERT: Significant disruption in Zone 4E, assault force dispatched. 05028_ EM Pulse Cannon destroyed. 05044_ Adv. Assault Cannon destroyed. 05044_ Deuterium Engine destroyed. 05052_ Acquired EM Pulse Cannon. 05053_ Fusion Modulator explodes. 05053_ Longsword +1 destroyed. 05053_ Y-54 Guardian destroyed. 05058_ R-06 Scavenger collects Imp. Heat Sink. 05061_ ALERT: Rogue bot located, Programmers report to Factory Zone 7R. 05067_ Acquired Hvy. Ion Cannon. 05103_ Slammed into Y-54 Guardian. 05106_ Destabilizing: System corrupted (+2). 05108_ Weapon Cycler destroyed. 05108_ Slammed into Y-54 Guardian. 05111_ EM Pulse Cannon destroyed. Map ----- +----------------------------------------------------+ | | | | | | | | | | | | | | | ?????????????????????????????????????????#### # | | ?????????????????????????????????????????#"""""""" | | ????????????????????????#####???????????##" | | ??????????????????####### #####???????# " | | ??????????????????# #???????# " | | ??????????????????# ##### ### #??######"" | | ??????????????????# #??###+#### ##?# " | | ??????????????????# #??# # ### ### | | ??????????????????# #??# + [ #?# / | | ??????????????????# #??# # ### #?# % | | ???????????????####+#### #####?# #?#" | | ???????????????# ########????# !##"""""""" | | ???????????????# """" # #######?# | | ???????????????# """" + T | | ???????????????# """" # ######?## % | | ???????????????# """" ## ##???????# ######## | | ???????????????# ## #????????###+###??????# | | ???????????????######### ###???????????????????# | | ?????????????????????# Y @ #???????????????????# | | ?????????????? k o #???????????????????# | | ?????????? / #???????????????????# | | ?????????? #???????????????????# | | ?????????? ###+####### *#???????????????????# | | ?????????????????????###+###???????????????????# | | ??????????????????????????????????????????????? | | ?????????????????????????????????????????????? | | ?????????????????????????????????????????????? | | ?????????????????????????????????????????????? | | ???????????????????????????????????????????????? | | ?????????????????????????????????????????????????? | | ?????????????????????????????????????????????????? | | ?????????????????????????????????????????????????? | | ?????????????????????????????????????????????????? | | ?????????????????????????????????????????????????? | | ?????????????????????????????????????????????????? | | ?????????????????????????????????????????????????? | | ?????????????????????????????????????????????????? | | ?????????????????????????????????????????????????? | | ?????????????????????????????????????????????????? | | ?????????????????????????????????????????????????? | | ?????????????????????????????????????????????????? | | ?????????????????????????????????????????????????? | | ?????????????????????????????????????????????????? | +----------------------------------------------------+ Best States ------------- Heat Dissipation 34 Energy Generation 14 Energy Capacity 275 Matter Stores 300 Matter Capacity 300 Sight Range 16 Robot Scan Range 15 Terrain Scan Density 10 Armor Coverage 225 Resistance: KI 30 Weapon Cycling 15 Evasion (%) 55 Authchip Count 1 Item Schematics ----------------- None Robot Schematics ------------------ None Fabricated ------------ Nothing Alien Tech Used ----------------- None Achievements -------------- None Challenges ------------ None Game ------ Seed CobblerCoolingCapacitor Manual? 0 Play Time 00:42:49 Cumulative 25.2 hours Start 2024.07.07 @ 18:14:37 End 2024.07.07 @ 19:00:43 Sessions 1 Manual Loads 0 Difficulty Rogue Special Mode None Game No. 75 Rogue 75 Adventurer 0 Explorer 0 Win Type - Total 0 Types 0/0/0/0/0/0/0/0/0 Lore% 16 Gallery% 31 Achievement% 23 Wizard Run 0 Options --------- Layout 1 ASCII 0 Keyboard 0 Movement Arrows Keybinds 0 Fullscreen 1 Font 16/SmallcapsGlow Map View 25x20 Zoom Use 95% Tactical HUD 1 Map Filters NONE Filters NONE Steam SD RUN: 5c5baa76-4b7c-413a-a4e5-6414116c6e6e